[Event "*** Titled Tuesday 3|2 Blitz"]
[Site "Chess.com"]
[Date "2015.06.02"]
[Round "9"]
[White "MattyDPerrine"]
[Black "Viaje"]
[Result "1/2-1/2"]
[WhiteElo "2259"]
[BlackElo "2240"]
[TimeControl "180+2"]
[EndTime "12:53:35 PDT"]
[Termination "Game drawn by agreement"]

1. d4 {[%clk 0:02:54.7]} 1... Nf6 {[%clk 0:03:00.1]} 2. Nf3 {[%clk 0:02:54]}
2... d5 {[%clk 0:02:59.7]} 3. c4 {[%clk 0:02:54.9]} 3... c6 {[%clk 0:03:00.8]}
4. Nc3 {[%clk 0:02:55.9]} 4... e6 {[%clk 0:03:01.8]} 5. e3 {[%clk 0:02:56.8]}
5... Nbd7 {[%clk 0:03:01.8]} 6. Qc2 {[%clk 0:02:58]} 6... Bd6 {[%clk 0:02:56]}
7. Bd2 {[%clk 0:02:57.9]} 7... O-O {[%clk 0:02:55.4]} 8. g4 {[%clk 0:02:57.8]}
8... dxc4 {[%clk 0:02:40.5]} 9. g5 {[%clk 0:02:58]} 9... Nd5 {[%clk 0:02:40.9]}
10. Bxc4 {[%clk 0:02:49.3]} 10... b5 {[%clk 0:02:35.6]} 11. Bd3 {[%clk
0:02:49.5]} 11... g6 {[%clk 0:02:32.4]} 12. a3 {[%clk 0:02:41.8]} 12... Bb7
{[%clk 0:02:23.2]} 13. Ne4 {[%clk 0:02:37.3]} 13... Be7 {[%clk 0:02:22.2]} 14.
h4 {[%clk 0:02:30.1]} 14... c5 {[%clk 0:02:22.6]} 15. dxc5 {[%clk 0:02:21.3]}
15... Nxc5 {[%clk 0:01:50.1]} 16. Nxc5 {[%clk 0:02:15.2]} 16... Bxc5 {[%clk
0:01:52]} 17. Qxc5 {[%clk 0:01:08.3]} 17... Nf4 {[%clk 0:01:51.5]} 18. exf4
{[%clk 0:00:47]} 18... Qxd3 {[%clk 0:01:45.5]} 19. Qe3 {[%clk 0:00:27.8]} 19...
Qxe3+ {[%clk 0:01:45.8]} 20. fxe3 {[%clk 0:00:29.7]} 20... Bxf3 {[%clk
0:01:46.8]} 21. Rh3 {[%clk 0:00:21.4]} 21... Bg4 {[%clk 0:01:47.4]} 22. Rg3
{[%clk 0:00:19.2]} 22... Bf5 {[%clk 0:01:46.1]} 23. Bc3 {[%clk 0:00:20.8]} 23...
Rfd8 {[%clk 0:01:45]} 24. Rd1 {[%clk 0:00:20.9]} 24... Rxd1+ {[%clk 0:01:41.6]}
25. Kxd1 {[%clk 0:00:22.8]} 25... Rd8+ {[%clk 0:01:42.7]} 26. Bd4 {[%clk
0:00:21.6]} 26... a6 {[%clk 0:01:39]} 27. Kd2 {[%clk 0:00:20.7]} 27... Rc8
{[%clk 0:01:39.1]} 28. Bc3 {[%clk 0:00:21.6]} 28... Rd8+ {[%clk 0:01:39.5]} 29.
Ke2 {[%clk 0:00:23]} 29... Kf8 {[%clk 0:01:37.2]} 30. Rg1 {[%clk 0:00:22.2]}
30... Ke8 {[%clk 0:01:34.8]} 31. Rc1 {[%clk 0:00:22.4]} 31... Rd5 {[%clk
0:01:29.8]} 32. Bd4 {[%clk 0:00:21.1]} 32... Kd7 {[%clk 0:01:28.9]} 33. Kf3
{[%clk 0:00:21.2]} 33... Rd6 {[%clk 0:01:28.7]} 34. Rc3 {[%clk 0:00:20.8]} 34...
Rc6 {[%clk 0:01:29.5]} 35. Bc5 {[%clk 0:00:19.6]} 35... Bh3 {[%clk 0:01:18.2]}
36. e4 {[%clk 0:00:18.7]} 36... Bf1 {[%clk 0:01:17.9]} 37. Ke3 {[%clk
0:00:17.2]} 37... Bc4 {[%clk 0:01:13.9]} 38. b4 {[%clk 0:00:15.6]} 38... Kc7
{[%clk 0:01:09.9]} 39. Rc1 {[%clk 0:00:14.4]} 39... Kc8 {[%clk 0:01:10.8]} 40.
Rd1 {[%clk 0:00:15.2]} 40... Kc7 {[%clk 0:01:10.1]} 41. h5 {[%clk 0:00:16.2]}
41... Kc8 {[%clk 0:01:03.7]} 42. Rh1 {[%clk 0:00:14.8]} 42... Rc7 {[%clk
0:01:01.8]} 43. hxg6 {[%clk 0:00:15.9]} 43... fxg6 {[%clk 0:01:03.7]} 44. Bd4
{[%clk 0:00:15.5]} 44... Rd7 {[%clk 0:01:02.3]} 45. Rc1 {[%clk 0:00:16.2]} 45...
Kb7 {[%clk 0:01:00.3]} 46. Rc3 {[%clk 0:00:15.8]} 46... Kc8 {[%clk 0:01:01.1]}
47. Rc1 {[%clk 0:00:14.6]} 47... Kb7 {[%clk 0:00:59.9]} 48. Rc2 {[%clk
0:00:15.8]} 48... Kc8 {[%clk 0:01:01.1]} 49. Rf2 {[%clk 0:00:16.9]} 49... Kd8
{[%clk 0:01:00]} 50. f5 {[%clk 0:00:16.1]} 50... exf5 {[%clk 0:01:00.8]} 51.
exf5 {[%clk 0:00:18]} 51... gxf5 {[%clk 0:01:01]} 52. Rxf5 {[%clk 0:00:19.9]}
52... Ke8 {[%clk 0:01:02.1]} 53. Bc5 {[%clk 0:00:16.4]} 53... Rf7 {[%clk
0:00:59.8]} 54. Rxf7 {[%clk 0:00:09.6]} 54... Kxf7 {[%clk 0:01:00.6]} 55. Kf4
{[%clk 0:00:11.5]} 1/2-1/2

[Event "*** Titled Tuesday 3|2 Blitz"]
[Site "Chess.com"]
[Date "2015.06.02"]
[Round "9"]
[White "Schemato"]
[Black "FearNoEvil12"]
[Result "1-0"]
[WhiteElo "2051"]
[BlackElo "1944"]
[TimeControl "180+2"]
[EndTime "12:53:37 PDT"]
[Termination "Schemato won by resignation"]

1. c4 {[%clk 0:03:01.9]} 1... Nf6 {[%clk 0:02:35.6]} 2. Nc3 {[%clk 0:03:02.3]}
2... g6 {[%clk 0:02:34.6]} 3. g3 {[%clk 0:03:03.5]} 3... Bg7 {[%clk 0:02:35.7]}
4. Bg2 {[%clk 0:03:05.1]} 4... d6 {[%clk 0:02:35.7]} 5. e4 {[%clk 0:03:06.5]}
5... O-O {[%clk 0:02:35.2]} 6. Nge2 {[%clk 0:03:07.3]} 6... c5 {[%clk
0:02:32.3]} 7. O-O {[%clk 0:03:08.3]} 7... Nc6 {[%clk 0:02:33.6]} 8. d3 {[%clk
0:03:09.7]} 8... h6 {[%clk 0:02:30.4]} 9. h3 {[%clk 0:03:10.7]} 9... Nh7 {[%clk
0:02:28.1]} 10. Be3 {[%clk 0:03:02.1]} 10... f5 {[%clk 0:02:27.3]} 11. Qd2
{[%clk 0:03:01.6]} 11... g5 {[%clk 0:02:27.4]} 12. exf5 {[%clk 0:03:02.3]} 12...
Bxf5 {[%clk 0:02:25.4]} 13. d4 {[%clk 0:02:56.1]} 13... cxd4 {[%clk 0:02:24.6]}
14. Nxd4 {[%clk 0:02:56.9]} 14... Bd7 {[%clk 0:02:20]} 15. Rad1 {[%clk
0:02:51.6]} 15... Nf6 {[%clk 0:02:18.4]} 16. Rfe1 {[%clk 0:02:46.4]} 16... Rc8
{[%clk 0:02:17.3]} 17. b3 {[%clk 0:02:47]} 17... a6 {[%clk 0:02:16.3]} 18. Nd5
{[%clk 0:02:41.9]} 18... Nxd4 {[%clk 0:02:01.4]} 19. Bxd4 {[%clk 0:02:24.5]}
19... e6 {[%clk 0:01:57.3]} 20. Nxf6+ {[%clk 0:02:04.6]} 20... Bxf6 {[%clk
0:01:56.9]} 21. Bxf6 {[%clk 0:02:00.5]} 21... Qxf6 {[%clk 0:01:58.1]} 22. Bxb7
{[%clk 0:01:58.8]} 22... Rc5 {[%clk 0:01:43]} 23. Re2 {[%clk 0:01:52.4]} 23...
Rf5 {[%clk 0:01:39.6]} 24. Be4 {[%clk 0:01:45.8]} 24... Re5 {[%clk 0:01:29.8]}
25. Bg2 {[%clk 0:01:34.9]} 25... Rxe2 {[%clk 0:01:27.6]} 26. Qxe2 {[%clk
0:01:36.8]} 26... e5 {[%clk 0:01:21.1]} 27. Rd2 {[%clk 0:01:22.2]} 27... Be8
{[%clk 0:01:18.7]} 28. Qd3 {[%clk 0:01:17.6]} 28... e4 {[%clk 0:00:37]} 29. Bxe4
{[%clk 0:01:12.2]} 29... Bd7 {[%clk 0:00:32.4]} 30. Qxd6 {[%clk 0:01:06.4]}
30... Bxh3 {[%clk 0:00:31.2]} 31. Qxf6 {[%clk 0:00:54.2]} 31... Rxf6 {[%clk
0:00:33.1]} 32. c5 {[%clk 0:00:47.6]} 32... Kf7 {[%clk 0:00:32.9]} 33. b4 {[%clk
0:00:43.3]} 33... Ke7 {[%clk 0:00:33]} 34. a4 {[%clk 0:00:37.9]} 34... Re6
{[%clk 0:00:33.2]} 35. Bg2 {[%clk 0:00:30]} 35... Bxg2 {[%clk 0:00:30.7]} 36.
Kxg2 {[%clk 0:00:30.9]} 36... Re4 {[%clk 0:00:31.1]} 37. Rb2 {[%clk 0:00:28]}
37... Rc4 {[%clk 0:00:29.4]} 38. Kf3 {[%clk 0:00:25.1]} 38... Kd7 {[%clk
0:00:28.1]} 39. Ke3 {[%clk 0:00:25.8]} 39... a5 {[%clk 0:00:26.6]} 40. Kd3
{[%clk 0:00:22.3]} 40... Rxb4 {[%clk 0:00:26.5]} 41. Rxb4 {[%clk 0:00:22.8]}
41... axb4 {[%clk 0:00:26.9]} 42. g4 {[%clk 0:00:20.9]} 42... Kc6 {[%clk
0:00:25.2]} 43. Kc4 {[%clk 0:00:22]} 43... b3 {[%clk 0:00:26.1]} 44. Kxb3 {[%clk
0:00:22.9]} 44... Kxc5 {[%clk 0:00:27.2]} 45. Kc3 {[%clk 0:00:24.1]} 45... Kd5
{[%clk 0:00:24.6]} 46. Kd3 {[%clk 0:00:24.5]} 1-0

[Event "*** Titled Tuesday 3|2 Blitz"]
[Site "Chess.com"]
[Date "2015.06.02"]
[Round "9"]
[White "Recombinant"]
[Black "kesarev"]
[Result "0-1"]
[WhiteElo "2115"]
[BlackElo "2155"]
[TimeControl "180+2"]
[EndTime "12:54:13 PDT"]
[Termination "kesarev won by resignation"]

1. d4 {[%clk 0:03:01.9]} 1... Nf6 {[%clk 0:02:00.7]} 2. c4 {[%clk 0:03:01.9]}
2... g6 {[%clk 0:02:01.2]} 3. Nc3 {[%clk 0:03:02.2]} 3... Bg7 {[%clk 0:02:02.9]}
4. Nf3 {[%clk 0:03:03.1]} 4... O-O {[%clk 0:02:04.1]} 5. Bg5 {[%clk 0:03:04.2]}
5... d6 {[%clk 0:02:05]} 6. e3 {[%clk 0:03:05.4]} 6... c5 {[%clk 0:02:06.3]} 7.
d5 {[%clk 0:03:06.4]} 7... e6 {[%clk 0:02:06]} 8. Be2 {[%clk 0:03:06.8]} 8... a6
{[%clk 0:02:06.8]} 9. a4 {[%clk 0:03:02.6]} 9... h6 {[%clk 0:02:07.5]} 10. Bh4
{[%clk 0:03:02.3]} 10... e5 {[%clk 0:02:04.5]} 11. O-O {[%clk 0:02:59.8]} 11...
Qe8 {[%clk 0:02:05.3]} 12. Nd2 {[%clk 0:02:59.5]} 12... Nh7 {[%clk 0:02:05.7]}
13. Nde4 {[%clk 0:02:33.1]} 13... Qd7 {[%clk 0:02:05.3]} 14. f4 {[%clk
0:02:32.8]} 14... f5 {[%clk 0:02:05.4]} 15. Nd2 {[%clk 0:02:32.8]} 15... g5
{[%clk 0:01:34.7]} 16. Bg3 {[%clk 0:02:26.1]} 16... Qe7 {[%clk 0:01:35.1]} 17.
Bh5 {[%clk 0:02:21]} 17... Nd7 {[%clk 0:01:25.8]} 18. h3 {[%clk 0:02:16.5]}
18... exf4 {[%clk 0:01:01.9]} 19. exf4 {[%clk 0:02:15.1]} 19... Qe3+ {[%clk
0:01:02.7]} 20. Bf2 {[%clk 0:02:16.3]} 20... Qxf4 {[%clk 0:01:03.6]} 21. Bxc5
{[%clk 0:02:15.4]} 21... Bd4+ {[%clk 0:00:53.6]} 22. Bxd4 {[%clk 0:02:16.1]}
22... Qxd4+ {[%clk 0:00:54.4]} 23. Kh1 {[%clk 0:02:16.1]} 23... Nc5 {[%clk
0:00:50.6]} 24. Qe2 {[%clk 0:01:49.1]} 24... Nf6 {[%clk 0:00:35.7]} 25. Bg6
{[%clk 0:01:46.2]} 25... Bd7 {[%clk 0:00:20.5]} 26. Bxf5 {[%clk 0:01:33.9]}
26... Rae8 {[%clk 0:00:20.9]} 27. Qf2 {[%clk 0:01:29.6]} 27... Qxf2 {[%clk
0:00:19.6]} 28. Rxf2 {[%clk 0:01:30.5]} 28... Re3 {[%clk 0:00:13.5]} 29. Bxd7
{[%clk 0:01:29.5]} 29... Nfxd7 {[%clk 0:00:14.1]} 30. Raf1 {[%clk 0:01:29.3]}
30... Rxf2 {[%clk 0:00:13.5]} 31. Rxf2 {[%clk 0:01:30.3]} 31... Nd3 {[%clk
0:00:14.7]} 32. Re2 {[%clk 0:01:18.1]} 32... Rxe2 {[%clk 0:00:14.1]} 33. Nxe2
{[%clk 0:01:20]} 33... Nxb2 {[%clk 0:00:15.6]} 34. a5 {[%clk 0:01:17.8]} 34...
Ne5 {[%clk 0:00:15.2]} 35. c5 {[%clk 0:00:53.6]} 35... dxc5 {[%clk 0:00:15.3]}
36. Ne4 {[%clk 0:00:54.9]} 36... Nbd3 {[%clk 0:00:09.2]} 37. g4 {[%clk
0:00:50.8]} 37... Kf7 {[%clk 0:00:10]} 38. Kg2 {[%clk 0:00:51.6]} 38... c4
{[%clk 0:00:10.1]} 39. Nd4 {[%clk 0:00:50.4]} 39... Nf4+ {[%clk 0:00:07]} 40.
Kg3 {[%clk 0:00:48.3]} 40... Nxd5 {[%clk 0:00:08.9]} 41. Kf2 {[%clk 0:00:46.9]}
41... Nc6 {[%clk 0:00:08.4]} 42. Nf5 {[%clk 0:00:46.9]} 42... Kg6 {[%clk
0:00:08.1]} 43. Nfd6 {[%clk 0:00:46.6]} 43... Nxa5 {[%clk 0:00:08.8]} 44. Ke2
{[%clk 0:00:46.4]} 44... b5 {[%clk 0:00:09.7]} 45. Nc5 {[%clk 0:00:46.3]} 45...
c3 {[%clk 0:00:07.9]} 46. Nxa6 {[%clk 0:00:46.6]} 46... c2 {[%clk 0:00:04.6]}
47. Kd2 {[%clk 0:00:47.2]} 47... Ne3 {[%clk 0:00:04.3]} 48. Nc5 {[%clk
0:00:44.7]} 48... Nac4+ {[%clk 0:00:04.7]} 49. Kc1 {[%clk 0:00:45]} 49... Nxd6
{[%clk 0:00:04]} 50. Ne6 {[%clk 0:00:44.2]} 50... Ndc4 {[%clk 0:00:03.8]} 51.
Nf8+ {[%clk 0:00:45.7]} 51... Kf6 {[%clk 0:00:05.1]} 52. Nd7+ {[%clk 0:00:47.1]}
52... Ke6 {[%clk 0:00:05.5]} 53. Nc5+ {[%clk 0:00:49]} 53... Kd5 {[%clk
0:00:06.3]} 54. Nd3 {[%clk 0:00:50.9]} 54... Ne5 {[%clk 0:00:05.5]} 55. Nf2
{[%clk 0:00:52.2]} 55... Kd4 {[%clk 0:00:06.7]} 56. Kd2 {[%clk 0:00:53.5]} 56...
b4 {[%clk 0:00:07.8]} 57. h4 {[%clk 0:00:54.2]} 57... b3 {[%clk 0:00:08.7]} 58.
hxg5 {[%clk 0:00:55.1]} 58... hxg5 {[%clk 0:00:10.6]} 59. Kc1 {[%clk 0:00:52.9]}
59... N5c4 {[%clk 0:00:10.7]} 60. Nd3 {[%clk 0:00:48.8]} 60... b2+ {[%clk
0:00:11.5]} 61. Nxb2 {[%clk 0:00:49.6]} 61... Nxb2 {[%clk 0:00:12.7]} 62. Kxb2
{[%clk 0:00:51.1]} 62... Kd3 {[%clk 0:00:14.6]} 63. Kc1 {[%clk 0:00:52.5]} 63...
Nd5 {[%clk 0:00:16.2]} 64. Kb2 {[%clk 0:00:53.4]} 64... Kd2 {[%clk 0:00:18.1]}
0-1

[Event "*** Titled Tuesday 3|2 Blitz"]
[Site "Chess.com"]
[Date "2015.06.02"]
[Round "9"]
[White "MFBerna"]
[Black "only_defence"]
[Result "0-1"]
[WhiteElo "2004"]
[BlackElo "2223"]
[TimeControl "180+2"]
[EndTime "12:55:02 PDT"]
[Termination "only_defence won on time"]

1. e4 {[%clk 0:03:01.9]} 1... e6 {[%clk 0:03:00.8]} 2. d4 {[%clk 0:03:01.6]}
2... d5 {[%clk 0:03:02.5]} 3. Nd2 {[%clk 0:03:02.4]} 3... Be7 {[%clk 0:03:02.6]}
4. Ngf3 {[%clk 0:03:02.8]} 4... Nf6 {[%clk 0:03:02.3]} 5. Bd3 {[%clk 0:03:03.9]}
5... c5 {[%clk 0:03:02.7]} 6. exd5 {[%clk 0:03:02.5]} 6... Qxd5 {[%clk
0:03:02.6]} 7. dxc5 {[%clk 0:03:00.7]} 7... Bxc5 {[%clk 0:03:02.9]} 8. O-O
{[%clk 0:03:00.7]} 8... O-O {[%clk 0:03:01.8]} 9. Nb3 {[%clk 0:02:58.2]} 9...
Be7 {[%clk 0:02:51.9]} 10. Qe2 {[%clk 0:02:54.9]} 10... b6 {[%clk 0:02:49.9]}
11. Rd1 {[%clk 0:02:53.9]} 11... Qh5 {[%clk 0:02:48.7]} 12. Be4 {[%clk
0:02:42.9]} 12... Ba6 {[%clk 0:02:35.3]} 13. c4 {[%clk 0:02:21]} 13... Nbd7
{[%clk 0:02:22.6]} 14. Bxa8 {[%clk 0:02:20.9]} 14... Rxa8 {[%clk 0:02:24.5]} 15.
Nbd4 {[%clk 0:02:15.2]} 15... Nc5 {[%clk 0:02:03.7]} 16. Bf4 {[%clk 0:02:02.9]}
16... Rc8 {[%clk 0:01:54.6]} 17. Ne5 {[%clk 0:01:51.2]} 17... Qh4 {[%clk
0:01:44.8]} 18. Bg3 {[%clk 0:01:41]} 18... Qg5 {[%clk 0:01:44.4]} 19. h4 {[%clk
0:01:28.3]} 19... Qh6 {[%clk 0:01:43.9]} 20. Ndc6 {[%clk 0:00:59.7]} 20... Bf8
{[%clk 0:01:34.4]} 21. Nd8 {[%clk 0:00:48.8]} 21... Nfe4 {[%clk 0:01:27.3]} 22.
Ndxf7 {[%clk 0:00:44.9]} 22... Qf6 {[%clk 0:01:28.1]} 23. Qf3 {[%clk 0:00:29.3]}
23... Bb7 {[%clk 0:01:04.4]} 24. Qxf6 {[%clk 0:00:14.2]} 24... gxf6 {[%clk
0:01:06.3]} 25. Nd8 {[%clk 0:00:14.3]} 25... Nxg3 {[%clk 0:00:54.4]} 26. Nxb7
{[%clk 0:00:14.5]} 26... Nxb7 {[%clk 0:00:52.9]} 27. Ng4 {[%clk 0:00:12.5]}
27... Nh5 {[%clk 0:00:52.8]} 28. Rd7 {[%clk 0:00:11.5]} 28... Nc5 {[%clk
0:00:53.2]} 29. Rxa7 {[%clk 0:00:11.2]} 29... Bg7 {[%clk 0:00:44.5]} 30. Rd1
{[%clk 0:00:11.3]} 30... f5 {[%clk 0:00:45.2]} 31. Nh2 {[%clk 0:00:09.4]} 31...
Bxb2 {[%clk 0:00:46.2]} 32. Nf3 {[%clk 0:00:10]} 32... h6 {[%clk 0:00:45.2]} 33.
Rd6 {[%clk 0:00:07.6]} 33... Rb8 {[%clk 0:00:38.7]} 34. Rc6 {[%clk 0:00:07.8]}
34... Bf6 {[%clk 0:00:36.7]} 35. Rcc7 {[%clk 0:00:08.6]} 35... Ng7 {[%clk
0:00:37]} 36. Nd2 {[%clk 0:00:06.2]} 36... Ne8 {[%clk 0:00:37.5]} 37. Rh7 {[%clk
0:00:06.3]} 37... Bg7 {[%clk 0:00:38]} 38. Rhxg7+ {[%clk 0:00:06.4]} 38... Nxg7
{[%clk 0:00:39.9]} 39. Nf3 {[%clk 0:00:07.4]} 39... Rb7 {[%clk 0:00:37.1]} 40.
Ra8+ {[%clk 0:00:07.9]} 40... Kh7 {[%clk 0:00:38.1]} 41. Ne5 {[%clk 0:00:09.8]}
41... Nh5 {[%clk 0:00:39.1]} 42. Rc8 {[%clk 0:00:08.8]} 42... Ne4 {[%clk
0:00:39.5]} 43. f3 {[%clk 0:00:08]} 43... Nc5 {[%clk 0:00:38.5]} 44. Kf2 {[%clk
0:00:08.7]} 44... Nf4 {[%clk 0:00:38.7]} 45. g3 {[%clk 0:00:08.6]} 45... Nfd3+
{[%clk 0:00:39.4]} 46. Nxd3 {[%clk 0:00:10.1]} 46... Nxd3+ {[%clk 0:00:41.3]}
47. Ke3 {[%clk 0:00:12]} 47... Nb4 {[%clk 0:00:42.7]} 48. Ra8 {[%clk 0:00:11.1]}
48... Rc7 {[%clk 0:00:39.8]} 49. Kd4 {[%clk 0:00:08.9]} 49... Nc6+ {[%clk
0:00:39.5]} 50. Kc3 {[%clk 0:00:07.2]} 50... Na5 {[%clk 0:00:39.6]} 51. Kd3
{[%clk 0:00:06.4]} 51... Nxc4 {[%clk 0:00:39.8]} 52. Kd4 {[%clk 0:00:07.1]}
52... b5 {[%clk 0:00:39.3]} 53. Rb8 {[%clk 0:00:06.6]} 53... Rd7+ {[%clk
0:00:40.5]} 54. Kc3 {[%clk 0:00:06.3]} 54... Nd2 {[%clk 0:00:37.8]} 55. Rxb5
{[%clk 0:00:04.5]} 55... Nxf3 {[%clk 0:00:38.5]} 56. Rb6 {[%clk 0:00:04.2]}
56... e5 {[%clk 0:00:39.1]} 57. a4 {[%clk 0:00:04.3]} 57... e4 {[%clk
0:00:39.1]} 58. Re6 {[%clk 0:00:04.7]} 58... Ra7 {[%clk 0:00:34.3]} 59. Kb3
{[%clk 0:00:04.4]} 59... Nd4+ {[%clk 0:00:35.2]} 0-1

[Event "*** Titled Tuesday 3|2 Blitz"]
[Site "Chess.com"]
[Date "2015.06.02"]
[Round "9"]
[White "ilmago"]
[Black "goldaxe"]
[Result "0-1"]
[WhiteElo "1883"]
[BlackElo "2147"]
[TimeControl "180+2"]
[EndTime "12:55:05 PDT"]
[Termination "goldaxe won by resignation"]

1. e4 {[%clk 0:03:01.9]} 1... e5 {[%clk 0:03:00.3]} 2. Nf3 {[%clk 0:03:00.1]}
2... Nc6 {[%clk 0:03:01.2]} 3. c3 {[%clk 0:03:01.1]} 3... d5 {[%clk 0:02:38.6]}
4. Qa4 {[%clk 0:02:59.8]} 4... f6 {[%clk 0:02:21.4]} 5. Bb5 {[%clk 0:02:57.3]}
5... Ne7 {[%clk 0:02:16.7]} 6. exd5 {[%clk 0:02:55.4]} 6... Qxd5 {[%clk
0:02:17]} 7. O-O {[%clk 0:02:54.2]} 7... Be6 {[%clk 0:02:13.5]} 8. c4 {[%clk
0:02:50.8]} 8... Qd7 {[%clk 0:02:02.6]} 9. Nc3 {[%clk 0:02:47.2]} 9... a6 {[%clk
0:02:02.6]} 10. Ne4 {[%clk 0:02:47.3]} 10... Nf5 {[%clk 0:01:52.2]} 11. Bxc6
{[%clk 0:02:27.6]} 11... Qxc6 {[%clk 0:01:52.8]} 12. Qxc6+ {[%clk 0:02:27.7]}
12... bxc6 {[%clk 0:01:54.7]} 13. b3 {[%clk 0:02:26.1]} 13... Be7 {[%clk
0:01:40.1]} 14. Bb2 {[%clk 0:02:26.1]} 14... Kf7 {[%clk 0:01:25.3]} 15. d4
{[%clk 0:02:23.5]} 15... Nxd4 {[%clk 0:01:26.2]} 16. Nxd4 {[%clk 0:02:23.7]}
16... exd4 {[%clk 0:01:27.8]} 17. Bxd4 {[%clk 0:02:24.6]} 17... Rhd8 {[%clk
0:01:27.5]} 18. Rfd1 {[%clk 0:02:24.1]} 18... a5 {[%clk 0:01:23.3]} 19. Be3
{[%clk 0:02:14]} 19... Rxd1+ {[%clk 0:01:20]} 20. Rxd1 {[%clk 0:02:14.3]} 20...
a4 {[%clk 0:01:21.2]} 21. Bf4 {[%clk 0:02:14]} 21... axb3 {[%clk 0:01:18.4]} 22.
axb3 {[%clk 0:02:12.9]} 22... Ra3 {[%clk 0:01:17.3]} 23. Nd2 {[%clk 0:02:09.6]}
23... Bd6 {[%clk 0:01:09]} 24. Be3 {[%clk 0:01:55.7]} 24... Bf5 {[%clk
0:01:04.6]} 25. Rc1 {[%clk 0:01:52.8]} 25... Be5 {[%clk 0:01:01.5]} 26. Bc5
{[%clk 0:01:46.9]} 26... Ra2 {[%clk 0:01:00.7]} 27. Nf3 {[%clk 0:01:43.8]} 27...
Bf4 {[%clk 0:00:51.9]} 28. Re1 {[%clk 0:01:36.1]} 28... g5 {[%clk 0:00:52.4]}
29. g3 {[%clk 0:01:34.1]} 29... Bd6 {[%clk 0:00:51.5]} 30. Bxd6 {[%clk
0:01:31.3]} 30... cxd6 {[%clk 0:00:53.4]} 31. Nd4 {[%clk 0:01:32.3]} 31... Bd7
{[%clk 0:00:49.8]} 32. Rd1 {[%clk 0:01:28.3]} 32... Rb2 {[%clk 0:00:32.8]} 33.
h4 {[%clk 0:01:12.8]} 33... c5 {[%clk 0:00:22.6]} 34. Nb5 {[%clk 0:01:13.5]}
34... Bxb5 {[%clk 0:00:20.1]} 35. cxb5 {[%clk 0:01:15.4]} 35... gxh4 {[%clk
0:00:16.3]} 36. gxh4 {[%clk 0:01:09.3]} 36... Rxb3 {[%clk 0:00:16.9]} 37. Rxd6
{[%clk 0:01:09.3]} 37... Rxb5 {[%clk 0:00:17.9]} 38. h5 {[%clk 0:01:05]} 38...
Kg7 {[%clk 0:00:13.2]} 39. Rc6 {[%clk 0:01:04.6]} 39... Ra5 {[%clk 0:00:11.2]}
40. Kg2 {[%clk 0:01:05.2]} 40... Kh6 {[%clk 0:00:09.1]} 41. Rxf6+ {[%clk
0:01:03.7]} 41... Kxh5 {[%clk 0:00:10.3]} 42. Rc6 {[%clk 0:01:04.7]} 42... Kg5
{[%clk 0:00:10.5]} 43. Kg3 {[%clk 0:01:05.4]} 43... Ra3+ {[%clk 0:00:09.6]} 44.
f3 {[%clk 0:01:06.4]} 44... Rc3 {[%clk 0:00:11.2]} 45. Rc7 {[%clk 0:01:05.9]}
45... Kg6 {[%clk 0:00:09.4]} 46. Rc8 {[%clk 0:01:06.5]} 46... Rc4 {[%clk
0:00:09.2]} 47. f4 {[%clk 0:01:07.1]} 47... Rc3+ {[%clk 0:00:06.2]} 48. Kg4
{[%clk 0:01:07.8]} 48... h5+ {[%clk 0:00:06.8]} 49. Kh4 {[%clk 0:01:08.8]} 49...
Rc4 {[%clk 0:00:04]} 50. Rc6+ {[%clk 0:01:04]} 50... Kf5 {[%clk 0:00:05]} 51.
Kxh5 {[%clk 0:01:04.5]} 51... Kxf4 {[%clk 0:00:05.3]} 52. Kh4 {[%clk 0:01:01.7]}
52... Rc3 {[%clk 0:00:06]} 53. Rc8 {[%clk 0:01:00.4]} 53... c4 {[%clk
0:00:06.6]} 54. Rc7 {[%clk 0:00:58.8]} 54... Rc1 {[%clk 0:00:06.1]} 55. Rf7+
{[%clk 0:00:59.1]} 55... Ke3 {[%clk 0:00:06.7]} 56. Kg3 {[%clk 0:01:00.3]} 56...
Rg1+ {[%clk 0:00:05.9]} 57. Kh2 {[%clk 0:01:00.5]} 57... Rg8 {[%clk 0:00:07.1]}
58. Re7+ {[%clk 0:00:50.7]} 58... Kd3 {[%clk 0:00:08]} 59. Rd7+ {[%clk
0:00:51.5]} 59... Kc2 {[%clk 0:00:08.9]} 60. Rc7 {[%clk 0:00:50.3]} 60... c3
{[%clk 0:00:10]} 61. Kh3 {[%clk 0:00:49.3]} 61... Kd2 {[%clk 0:00:10.1]} 62.
Rd7+ {[%clk 0:00:49.9]} 62... Kc1 {[%clk 0:00:11]} 63. Rc7 {[%clk 0:00:51.4]}
63... c2 {[%clk 0:00:12.7]} 64. Kh2 {[%clk 0:00:52.7]} 64... Rd8 {[%clk
0:00:12.9]} 65. Kg2 {[%clk 0:00:51.5]} 65... Kd2 {[%clk 0:00:14]} 0-1